Cogmind - Beta 11 X7 @@@ ROGUE MODE // 2021.10.18 @ 17:38:28 Player: LU-1G1 Result: Destroyed by G-47 Trooper with Particle Gun Performance ------------- Evolutions (0) 0 Regions Visited (2) 400 Robots Destroyed (26) 130 Value Destroyed (551) 551 Prototype IDs (2) 40 Alien Tech Used (0) 0 Bonus (0) 0 TOTAL SCORE: 1121 Bonus ------- None Cogmind --------- Core Integrity 0/250 Matter 294/300 Energy 100/100 System Corruption 0% Temperature Cool (9) Movement Rolling (165) Ox5 Location -10/Mines Parts ------- > --- POWER (1) -------- (None) > --- PROPULSION (2) --- Wheel Compact Wheel > --- UTILITY (2) ------ Cargo Storage Unit > --- WEAPON (2) ------- Light Assault Rifle Light Assault Rifle > --- INVENTORY (30) --- Light Treads Light Treads Wheel Wheel Wheel Wheel Compact Wheel Compact Wheel Compact Wheel Cargo Storage Unit Cargo Storage Unit Cargo Storage Unit Cargo Storage Unit Large Matter Pod (150) Large Matter Pod (10) High-capacity Matter Pod (200) High-capacity Matter Pod (200) Improved Terrain Scanner EM Pulse Gun Light Assault Rifle Slug Cannon Peak State ------------ > --- POWER ------------ Light Ion Engine > --- PROPULSION ------- Light Treads Light Treads > --- UTILITY ---------- Small Storage Unit Improved Terrain Scanner > --- WEAPON ----------- EM Pulse Gun Light Assault Rifle > --- INVENTORY -------- Light Ion Engine Wheel Compact Wheel Compact Wheel Compact Wheel Small Laser [Rating: 9] Favorites ----------- Power Light Ion Engine Engine Light Ion Engine Propulsion Compact Wheel Treads Light Treads Wheel Compact Wheel Utility Cargo Storage Unit Device Improved Terrain Scanner Storage Cargo Storage Unit Weapon Assault Rifle Energy Gun EM Pulse Gun Ballistic Gun Assault Rifle Build | -11 -10 -10 ------- Run | Scr Mat Min Slots Evolved . | . . . Power . | . . . Propulsion . | . . . Utility . | . . . Weapon . | . . . Parts Attached 23 | 7 11 5 Power 2 | 1 1 . Engine 2 | 1 1 . Core . | . . . Reactor . | . . . Propulsion 10 | 2 6 2 Treads 3 | 2 1 . Leg . | . . . Wheel 7 | . 5 2 Hover . | . . . Flight . | . . . Utility 3 | 2 1 . Device 1 | 1 . . Storage 2 | 1 1 . Processor . | . . . Hackware . | . . . Protection . | . . . Artifact . | . . . Weapon 8 | 2 3 3 Energy Gun 1 | 1 . . Energy Cannon . | . . . Ballistic Gun 7 | 1 3 3 Ballistic Cannon . | . . . Launcher . | . . . Special Weapon . | . . . Impact Weapon . | . . . Slashing Weapon . | . . . Piercing Weapon . | . . . Special Melee Weapon . | . . . Unidentified Prototypes . | . . . Parts Lost 11 | . 5 6 Power 2 | . 1 1 Propulsion 4 | . 2 2 Utility . | . . . Weapon 5 | . 2 3 Highest Loss Streak 4 | . 4 4 Average Slot Usage (%) 82 | . 87 74 Engine 9 | . 13 3 Treads 4 | . 7 . Wheel 22 | . 19 28 Device 2 | . 3 . Storage 14 | . 14 14 Ballistic Gun 27 | . 27 28 Naked Turns . | . . . Heaviest Build 147 | 12 147 147 Greatest Support 40 | 40 40 32 Greatest Overweight (x) 5 | 2 5 5 Average Overweight (x) 3 | . 2 4 Largest Inventory Capacity 30 | 8 30 30 Average Capacity 24 | 7 24 30 Most Carried 26 | 6 23 26 Average Carried 18 | 2 16 24 Final Capacity 30 | 8 30 30 Final Carried 25 | 6 23 25 Class Distribution -------------------- 76% | Hauler-Mutant 23% | Mutant Dominant Class ---------------- Hauler-Mutant | -10/Materials Hauler-Mutant | -10/Mines Resources | -11 -10 -10 ----------- Run | Scr Mat Min Matter Collected 1362 | 266 468 628 Remotely . | . . . Salvage Created 882 | 64 671 147 Parts 62 | 4 48 10 Haulers Intercepted . | . . . Recyclers Shooed 3 | . 3 . Parts Field Recycled . | . . . Retrieved Matter . | . . . Parts Self-Destructed . | . . . Prevented . | . . . Kills | -11 -10 -10 ------- Run | Scr Mat Min Combat Hostiles Destroyed 16 | . 11 5 Guns 16 | . 11 5 Classes Destroyed 6 | 2 3 1 Worker 4 | . 4 . Builder 2 | . 2 . Tunneler 2 | 1 1 . Recycler 2 | 1 1 . Swarmer 3 | . . 3 Grunt 13 | . 11 2 Best Kill Streak 5 | 1 5 4 Combat Bots Only 4 | . 3 4 Max Kills in Single Turn 2 | 1 2 1 Gunslinging . | . . . Exploded . | . . . Melee . | . . . Uniques/NPCs Destroyed . | . . . Combat | -11 -10 -10 -------- Run | Scr Mat Min Damage Taken 1214 | . 780 434 Core 265 | . 147 118 Absorbed by Shields . | . . . Core Remaining (%) 100 | 100 . . Volleys Fired 103 | 11 67 25 Largest 2 | 1 2 2 Hottest 40 | 20 40 40 Shots Fired 190 | 11 131 48 Gun 190 | 11 131 48 Cannon . | . . . Launcher . | . . . Special . | . . . Kinetic 190 | 11 131 48 Thermal . | . . . Explosive . | . . . Electromagnetic . | . . . Robot Hit Streak 10 | 5 10 6 Robot Miss Streak 3 | 3 3 3 Penetration Max . | . . . Secondary Targets 3 | . 3 . Max Gunslinging Chain 1 | . 1 . Shots Hit Robots 125 | 7 88 30 Core Hits 47 | 5 32 10 Critical Kills . | . . . Critical Parts Destroyed . | . . . Critical Strikes . | . . . Melee Attacks . | . . . Impact . | . . . Slashing . | . . . Piercing . | . . . Sneak Attacks . | . . . Combat Hostiles . | . . . Follow-up Attacks . | . . . Damage Inflicted 1455 | 50 1133 272 Guns 1455 | 50 1133 272 Cannons . | . . . Explosions . | . . . Melee . | . . . Ramming . | . . . Kinetic 1455 | 50 1133 272 Thermal . | . . . Explosive . | . . . Electromagnetic . | . . . Impact . | . . . Slashing . | . . . Piercing . | . . . Highest Corruption . | . . . Average Corruption . | . . . Corruption Purged . | . . . Overload Shots . | . . . Overflow Damage . | . . . Projectiles . | . . . Explosions . | . . . Melee . | . . . Knockbacks . | . . . Impact . | . . . Kinetic . | . . . Secondary . | . . . Self-Inflicted Damage . | . . . Shots . | . . . Rammed . | . . . Targets Rammed . | . . . Kicked . | . . . Crushed . | . . . Highest Temperature 8 | . 8 4 Average Temperature 4 | . 4 3 Received Heat Transfer 627 | . 417 210 Siege Activations . | . . . Robots Corrupted . | . . . Combat Hostiles . | . . . Parts Fried . | . . . Impact Corruptions . | . . . Robots Melted . | . . . Combat Hostiles . | . . . Parts Melted . | . . . Heat Transferred . | . . . Parts Sabotaged . | . . . Parts Stolen . | . . . Parts Stripped . | . . . Power Chain Reactions . | . . . Missiles Intercepted . | . . . Alert | -11 -10 -10 ------- Run | Scr Mat Min Peak Influence 230 | 10 230 126 Initial 66 | . 6 66 Average 87 | 5 98 92 Maximum Alert Level 1 | . 1 . Low Security (%) 95 | 100 91 100 Level 1 4 | . 8 . Level 2 . | . . . Level 3 . | . . . Level 4 . | . . . Level 5 . | . . . High Security . | . . . Max Security . | . . . Squads Dispatched 3 | . 3 . Investigation 2 | . 2 . Extermination . | . . . Reinforcement 1 | . 1 . Assault . | . . . Garrison . | . . . Intercept . | . . . Construction Impeded . | . . . Haulers Reinforced . | . . . Active Scanning Responses . | . . . Cargo Convoy Interrupts . | . . . Stealth | -11 -10 -10 --------- Run | Scr Mat Min Distress Signals 2 | . 2 . Communications Jammed . | . . . Distress Signals . | . . . Times Spotted 23 | . 16 7 Peak Tracking Total 5 | . 4 5 Tactical Retreats . | . . . Traps | -11 -10 -10 ------- Run | Scr Mat Min Traps Triggered . | . . . Indirectly . | . . . Trap Hack Attempts . | . . . Triggered . | . . . Disarmed . | . . . Reprogrammed . | . . . Reused . | . . . Traps Extracted . | . . . Installed . | . . . Triggered . | . . . Machines | -11 -10 -10 ---------- Run | Scr Mat Min Machines Disabled . | . . . Max in Single Turn . | . . . Machines Sabotaged . | . . . Garrisons Compromised . | . . . Overloaded Fab Kills . | . . . Fab Network Shutdowns . | . . . Hacking | -11 -10 -10 --------- Run | Scr Mat Min Machines Accessed 4 | . 4 . Terminals 2 | . 2 . Fabricators . | . . . Repair Stations 1 | . 1 . Recycling Units 1 | . 1 . Scanalyzers . | . . . Garrison Access . | . . . Total Hacks 16 | . 16 . Successful 9 | . 9 . Failed 7 | . 7 . Catastrophic . | . . . Database Lockouts . | . . . Manual 12 | . 12 . Terminals 13 | . 13 . Fabricators . | . . . Repair Stations 2 | . 2 . Recycling Units 1 | . 1 . Scanalyzers . | . . . Garrison Access . | . . . Terminal Hacks 4 | . 4 . Part Schematic 2 | . 2 . Prototype ID Bank 1 | . 1 . Hauler Manifests 1 | . 1 . Fabricator Hacks . | . . . Repair Station Hacks 2 | . 2 . Scan Component 1 | . 1 . Repair 1 | . 1 . Recycling Unit Hacks . | . . . Scanalyzer . | . . . Garrison Access Hacks . | . . . Unauthorized Hacks 3 | . 3 . Terminals 2 | . 2 . Botnet 1 | . 1 . Operators 1 | . 1 . Fabricators . | . . . Repair Stations . | . . . Recycling Units 1 | . 1 . Tunnel 1 | . 1 . Scanalyzers . | . . . Garrison Access . | . . . Data Cores Recovered . | . . . Used . | . . . Hacking Detections 2 | . 2 . Full Trace Events 1 | . 1 . Feedback Events . | . . . Feedback Blocked . | . . . Robot Schematics Acquired . | . . . Robots Built . | . . . Matter . | . . . Time . | . . . Total Robot Build Rating . | . . . Part Schematics Acquired 2 | . 2 . Parts Built . | . . . Matter . | . . . Time . | . . . Total Part Build Rating . | . . . Parts Repaired 1 | . 1 . Time 26 | . 26 . Parts Recycled . | . . . Recycled Matter . | . . . Retrieved Matter . | . . . Retrieved Components . | . . . Parts Scanalyzed . | . . . Part Schematics Acquired . | . . . Parts Damaged . | . . . Bothacking | -11 -10 -10 ------------ Run | Scr Mat Min Used RIF Installer . | . . . Robots Hacked . | . . . Non-combat . | . . . Combat . | . . . Robot Hacks Applied . | . . . Relay Couplers Released . | . . . Robots Rewired . | . . . Allies Hacked . | . . . Hacks Repelled . | . . . Allies | -11 -10 -10 -------- Run | Scr Mat Min Total Allies . | . . . Largest Group . | . . . Highest-Rated Group . | . . . Highest-Rated Ally . | . . . Total Orders . | . . . Ally Attacks . | . . . Total Damage . | . . . Kills . | . . . Allies Corrupted . | . . . Allies Melted . | . . . Intel | -11 -10 -10 ------- Run | Scr Mat Min Robot Analysis Total . | . . . Derelict Logs Recovered 2 | . . 2 Drone Launches . | . . . Drone Recoveries . | . . . Exploration | -11 -10 -10 ------------- Run | Scr Mat Min Turns Passed 1186 | 118 628 440 Spaces Moved 490 | 55 216 219 Core 7 | 7 . . Treads 145 | 48 97 . Legs . | . . . Wheels 338 | . 119 219 Hover . | . . . Flight . | . . . Fastest Speed 50 | 50 160 160 Average Speed 161 | 151 161 163 Slowest Speed 165 | 160 165 165 Overloaded Moves . | . . . Propulsion Burnouts . | . . . Robots Hopped . | . . . Cave-ins Triggered . | . . . Exploration Rate (%) 29 | 4 35 48 Regions Visited 2 Branch Regions 1 Pre-discovered Areas 2 | . 1 1 Known Exits Taken . | . . . Unknown Exits Taken 2 | 1 1 . Scrap Searched . | . . . Spaces Dug . | . . . Terrain Destroyed . | . . . Melee . | . . . Projectile . | . . . AOE . | . . . Terrain Rammed . | . . . Walls Destroyed . | . . . Machines Disabled . | . . . Actions | -11 -10 -10 --------- Run | Scr Mat Min Total 707 | 78 368 261 Wait 52 | . 47 5 Move 488 | 54 215 219 Hop . | . . . Pick Up 36 | 6 23 7 Fast Attach 9 | 7 2 . Attach 10 | . 5 5 Detach 1 | . 1 . Swap 4 | . 4 . Drop 4 | . 4 . Fire 103 | 11 67 25 Melee . | . . . Ram . | . . . Kick . | . . . Crush . | . . . Escape Stasis . | . . . Rewire . | . . . Trap . | . . . Miscellaneous . | . . . Route ------- -11/Scrapyard -10/Materials -10/Mines History --------- Turn | Location | Event 12 | -11/Scrapyard | Discovered new exit (range 15) 119 | -11/Scrapyard | Entered Materials 499 | -10/Materials | Lost 4 parts (1p2n1w) 561 | -10/Materials | Core integrity fell below 50% 588 | -10/Materials | Build established: Hauler-Mutant 636 | -10/Materials | Discovered new exit (range 9) 679 | -10/Materials | Repaired Wheel 747 | -10/Materials | Entered Mines 790 | -10/Mines | Learned Materials terminal intel 893 | -10/Mines | Lost 4 parts (1p2n1w) 918 | -10/Mines | Core integrity fell below 20% 1094 | -10/Mines | A weapon hastily lodged in a ceiling crevice suddenly fell to the ground 1187 | -10/Mines | Destroyed by G-47 Trooper with Particle Gun Last Messages --------------- 00862_ Assault Rifle destroyed. 00873_ S-10 Pest destroyed. 00887_ G-34 Mercenary destroyed. 00890_ Acquired 18 matter. 00893_ Acquired Lgt. Assault Rifle. 00894_ Acquired 16 matter. 00897_ Acquired Lgt. Assault Rifle. 00911_ Assault Rifle destroyed. 00913_ Critical hit (Burn: +37). 00915_ Lgt. Assault Rifle destroyed. 00936_ G-47 Trooper destroyed. 00943_ K-01 Serf collects debris. 00944_ Acquired 53 matter. 00946_ K-01 Serf collects debris. 00955_ Acquired 50 matter. 00958_ K-01 Serf collects debris. 01094_ A Slug Cannon has been hastily shoved under some rubble with a note attached: "It's not as slow as it sounds." 01097_ Acquired Slug Cannon. 01185_ Critical hit (Burn: +37). Map ----- +----------------------------------------------------+ | ?????????????????????????????????????????????????? | | ?????????????????????????????????????????????????? | | ?????????????????????????????????????????????????? | | ?????????????????????????????????????????????????? | | ?????????????????????????????????????????????????? | | ?????????????????????????????????????????????????? | | ?????????????????????????????????????????????????? | | ?????????????????????????????????????????????????? | | ?????????????????????????????????????????????????? | | ????????????????????????????????##???????????##### | | ??????????????????????????????## ??????????## | | ??????????????????????????????# ??????????# """ | | ?????????????????????????????## ???######## """ | | ?????????????????????????????? ???# """ | | ?????????????????????????????? ???# ##### | | ?????????????????????????????? #???# #???####### | | ??????????????????????????????# #???# #?????????? | | ??????????????????????????????# #???# ##????????? | | ??????????????????????????????# #??## ##???????? | | ?????????????????????????????## #### #???????? | | ?????????????????????????????# ##??????? | | ?????????????????????????????# ##?????? | | ???????????????#######???????# ## ### ##????? | | ??????????????? ??????# ## #?## #????? | | ????????????????"" """ ####### ## #??## #????? | | ????????????????"" """ g @ ## #???### ##????? | | ????????????????"" """ ########## ######## #?????? | | ??????????????? ???????# #?????? | | ???????????????""" """???????# #### #?????? | | ???????????????""" """?????????? ??????# #?????? | | ????????????????"" ""??????????? ??????# #?????? | | ??????????????? ??????????? ??????# #?????? | | ????????????????##?#???????????? #?????## #?????? | | ????????????????????????????????##??????# #?????? | | ????????????????????????????????????????# ##?????? | | ?????????????????? #????????????????????# #??????? | | ???????????????# ####?#??????????????# #??????? | | ???????????????# ## ?????????????# #??????? | | ???????????????# ?????????????# #??????? | | ???????????????# #????????????# #??????? | | ???????????????# ?????????????# #??????? | | ???????????????# ??????????????# #######? | | ???????????????# ??????????????# #? | | ???????????????# ???????????????# ##### #? | | ???????????????# ?????####???????# #???# ## | | ??????????????## ####### #####???# #???# | | ??????????????# ## ##### ####### | | ??????????????# ## ##?# | | ??????????????# ## ### ### | | ?########?????# #?## ## ## | +----------------------------------------------------+ Best States ------------- Heat Dissipation 25 Energy Generation 10 Energy Capacity 125 Matter Stores 300 Matter Capacity 300 Sight Range 16 Terrain Scan Range 16 Terrain Scan Density 10 Evasion (%) 40 Recoil Reduction 2 Item Schematics ----------------- Huge Storage Unit | -10/Materials | Hacked Med. Storage Unit | -10/Materials | Hacked Robot Schematics ------------------ None Fabricated ------------ Nothing Alien Tech Used ----------------- None Achievements -------------- None Challenges ------------ None Game ------ Seed MicrowarpShieldThrusters Manual? 0 Play Time 00:12:47 Cumulative 430.4 hours Start 2021.10.18 @ 17:27:20 End 2021.10.18 @ 17:38:28 Sessions 1 Manual Loads 0 Difficulty Rogue Special Mode None Game No. 409 Rogue 194 Adventurer 112 Explorer 103 Win Type - Total 30 Types 21/0/6/2/0/0/0/1/0 Lore% 84 Gallery% 91 Achievement% 77 Wizard Run 0 Options --------- ASCII 0 Keyboard 0 Movement Numpad Keybinds 0 Fullscreen 2 Font 18/TerminusBold Map View 76x50 Tactical HUD 1 Map Filters NONE Filters NONE Steam 1 RUN: 1aad85a8-9a8d-4b6e-8b30-84ec3eb556bb